fUSD/lending_fUSD_20260115
["ID","MTS","AMOUNT","RATE_DAILY","PERIOD"]
[402040377,1768489849610,-330.80563593,0.00038536,2]
[402040378,1768489849619,-500.0,0.0003863,30]
[402040379,1768489849629,-500.0,0.0003863,30]
[402040380,1768489849638,-1186.01,0.0003863,30]
[402040381,1768489849648,-500.0,0.0003863,30]
[402040382,1768489849657,-492.69578088,0.0003863,30]
[402040383,1768489849667,-500.0,0.0003863,30]
[402040384,1768489849677,-1671.45,0.0003863,30]
[402040385,1768489849686,-1364.8,0.0003863,30]
[402040386,1768489849696,-600.0,0.0003863,30]
[402040387,1768489849706,-593.97,0.0003863,30]
[402040388,1768489849716,-500.0,0.0003863,30]
[402040389,1768489849725,-850.93,0.0003863,30]
[402040390,1768489849734,-526.24,0.0003863,30]
[402040391,1768489849744,-500.0,0.0003863,30]
[402040392,1768489849753,-500.0,0.0003863,30]
[402040393,1768489849763,-518.96,0.0003863,30]
[402040394,1768489849772,-500.0,0.0003863,30]
[402040395,1768489849781,-930.77,0.0003863,30]
[402040396,1768489849791,-1366.37,0.0003863,30]
[402040397,1768489849800,-500.0,0.0003863,30]
[402040398,1768489849810,-500.0,0.0003863,30]
[402040399,1768489849819,-500.0,0.0003863,30]
[402040400,1768489849829,-500.0,0.0003863,30]
[402040401,1768489849839,-1095.0,0.0003863,30]
[402040402,1768489849848,-500.0,0.0003863,30]
[402040403,1768489849859,-500.0,0.0003863,30]
[402040404,1768489849869,-1020.14,0.0003863,30]
[402040405,1768489849879,-500.0,0.0003863,30]
[402040406,1768489849888,-500.0,0.0003863,30]
[402040407,1768489849898,-500.0,0.0003863,30]
[402040408,1768489849907,-1158.88,0.0003863,30]
[402040409,1768489849917,-2016.66,0.0003863,30]
[402040410,1768489849926,-712.44,0.0003863,30]
[402040411,1768489849935,-680.92,0.0003863,30]
[402040412,1768489849945,-300.0,0.0003863,2]
[402040413,1768489849955,-983.91,0.0003863,30]
[402040414,1768489849966,-500.0,0.0003863,30]
[402040415,1768489849982,-1075.94,0.0003863,30]
[402040416,1768489849991,-550.48878938,0.0003863,30]
[402040417,1768489850001,-500.0,0.0003863,30]
[402040418,1768489850013,-500.0,0.0003863,30]
[402040419,1768489850022,-500.0,0.0003863,30]
[402040420,1768489850032,-500.0,0.0003863,30]
[402040421,1768489850042,-500.0,0.0003863,30]
[402040422,1768489850053,-1314.15,0.0003863,30]
[402040423,1768489850063,-500.0,0.0003863,30]
[402040424,1768489850072,-500.0,0.0003863,30]
[402040425,1768489850082,-1009.72,0.0003863,30]
[402040426,1768489850091,-500.0,0.0003863,30]
[402040427,1768489850103,-500.0,0.0003863,30]
[402040428,1768489850113,-500.0,0.0003863,30]
[402040429,1768489850122,-500.0,0.0003863,30]
[402040430,1768489850132,-500.0,0.0003863,30]
[402040431,1768489850142,-500.0,0.0003863,30]
[402040432,1768489850152,-500.0,0.0003863,30]
[402040433,1768489850162,-500.0,0.0003863,30]
[402040434,1768489850172,-500.0,0.0003863,30]
[402040435,1768489850182,-500.0,0.0003863,30]
[402040436,1768489850192,-500.0,0.0003863,30]
[402040437,1768489850203,-609.07,0.0003863,30]
[402040438,1768489850213,-500.0,0.0003863,30]
[402040439,1768489850222,-560.28422188,0.0003863,30]
[402040440,1768489850231,-1139.48,0.0003863,30]
[402040441,1768489850241,-674.29,0.0003863,30]
[402040442,1768489850250,-1640.33,0.0003863,30]
[402040443,1768489850259,-500.0,0.0003863,30]
[402040444,1768489850268,-500.0,0.0003863,30]
[402040445,1768489850278,-500.0,0.0003863,30]
[402040446,1768489850287,-500.0,0.0003863,30]
[402040447,1768489850297,-1049.54,0.0003863,30]
[402040448,1768489850307,-614.26,0.0003863,30]
[402040449,1768489850316,-571.97,0.0003863,30]
[402040450,1768489850326,-1240.24,0.0003863,30]
[402040451,1768489850335,-1208.85,0.0003863,30]
[402040452,1768489850345,-500.0,0.0003863,30]
[402040453,1768489850357,-500.0,0.0003863,30]
[402040454,1768489850366,-699.87,0.0003863,30]
[402040455,1768489850376,-367.85649465,0.0003863,30]
[402040456,1768489850387,-500.0,0.0003863,30]
[402040457,1768489850397,-653.44,0.0003863,30]
[402040458,1768489850406,-1378.45,0.0003863,30]
[402040459,1768489850415,-1305.66,0.0003863,30]
[402040460,1768489850424,-526.4,0.0003863,30]
[402040461,1768489850433,-600.78819852,0.0003863,30]
[402040462,1768489850442,-517.9343687,0.0003863,30]
[402040463,1768489850452,-1357.86,0.0003863,30]
[402040464,1768489850461,-1187.67,0.0003863,30]
[402040465,1768489850469,-500.0,0.0003863,30]
[402040466,1768489850479,-500.0,0.0003863,30]
[402040467,1768489850488,-527.79,0.0003863,30]
[402040468,1768489850497,-500.0,0.0003863,30]
[402040469,1768489850506,-509.13,0.0003863,30]
[402040470,1768489850516,-500.0,0.0003863,30]
[402040471,1768489850526,-500.0,0.0003863,30]
[402040472,1768489850535,-500.0,0.0003863,30]
[402040473,1768489850544,-500.0,0.0003863,30]
[402040474,1768489850553,-593.84,0.0003863,30]
[402040475,1768489850562,-500.0,0.0003863,30]
[402040476,1768489850571,-707.93,0.0003863,30]
[402040477,1768489850580,-686.94,0.0003863,30]
[402040478,1768489850589,-500.0,0.0003863,30]
[402040479,1768489850599,-614.70095754,0.0003863,30]
[402040480,1768489850611,-603.11,0.0003863,30]
[402040481,1768489850621,-500.0,0.0003863,30]
[402040482,1768489850631,-1149.71,0.0003863,30]
[402040483,1768489850641,-500.0,0.0003863,30]
[402040484,1768489850651,-1531.34,0.0003863,30]
[402040485,1768489850660,-500.0,0.0003863,30]
[402040486,1768489850670,-500.0,0.0003863,30]
[402040487,1768489850679,-500.0,0.0003863,30]
[402040488,1768489850689,-500.0,0.0003863,30]
[402040489,1768489850699,-500.0,0.0003863,30]
[402040490,1768489850710,-500.0,0.0003863,30]
[402040491,1768489850719,-500.0,0.0003863,30]
[402040492,1768489850729,-845.43,0.0003863,30]
[402040493,1768489850739,-618.62,0.0003863,30]
[402040494,1768489850749,-1361.68,0.0003863,30]
[402040495,1768489850758,-500.0,0.0003863,30]
[402040496,1768489850768,-500.0,0.0003863,30]
[402040497,1768489850777,-500.0,0.0003863,30]
[402040498,1768489850787,-500.0,0.0003863,30]
[402040499,1768489850797,-1659.43,0.0003863,30]
[402040500,1768489850807,-506.70326231,0.0003863,30]
[402040501,1768489850816,-500.0,0.0003863,30]
[402040502,1768489850825,-500.0,0.0003863,30]
[402040503,1768489850835,-501.80663548,0.0003863,30]
[402040504,1768489850845,-841.93,0.0003863,30]
[402040505,1768489850855,-722.13,0.0003863,30]
[402040506,1768489850865,-1189.96,0.0003863,30]
[402040507,1768489850875,-500.0,0.0003863,30]
[402040508,1768489850884,-500.0,0.0003863,30]
[402040509,1768489850894,-500.0,0.0003863,30]
[402040510,1768489850905,-557.09,0.0003863,30]
[402040511,1768489850915,-835.17,0.0003863,30]
[402040512,1768489850925,-500.0,0.0003863,30]
[402040513,1768489850934,-500.0,0.0003863,30]
[402040514,1768489850944,-500.0,0.0003863,30]
[402040515,1768489850953,-531.0,0.0003863,30]
[402040516,1768489850964,-399.85669133,0.0003863,30]
[402040517,1768489850976,-500.0,0.0003863,2]
[402040518,1768489850986,-500.0,0.0003863,30]
[402040519,1768489850995,-500.0,0.0003863,30]
[402040520,1768489851005,-500.0,0.0003863,30]
[402040521,1768489851015,-500.0,0.0003863,30]
[402040522,1768489851025,-500.0,0.0003863,30]
[402040523,1768489851035,-500.0,0.0003863,30]
[402040524,1768489851049,-500.0,0.0003863,30]
[402040525,1768489851060,-500.0,0.0003863,30]
[402040526,1768489851069,-3270.32,0.0003863,30]
[402040527,1768489851079,-500.0,0.0003863,30]
[402040528,1768489851088,-500.0,0.0003863,30]
[402040529,1768489851098,-1069.06,0.0003863,30]
[402040530,1768489851109,-500.0,0.0003863,30]
[402040531,1768489851118,-500.0,0.0003863,30]
[402040532,1768489851128,-580.34016269,0.0003863,30]
[402040533,1768489851137,-500.0,0.0003863,30]
[402040534,1768489851152,-500.0,0.0003863,30]
[402040535,1768489851162,-500.0,0.0003863,30]
[402040536,1768489851171,-864.61,0.0003863,30]
[402040537,1768489851181,-556.68,0.0003863,30]
[402040538,1768489851191,-548.59,0.0003863,30]
[402040539,1768489851200,-500.0,0.0003863,30]
[402040540,1768489851211,-1169.76,0.0003863,30]
[402040541,1768489851221,-500.0,0.0003863,30]
[402040542,1768489851230,-500.0,0.0003863,30]
[402040543,1768489851240,-579.96,0.0003863,30]
[402040544,1768489851250,-500.0,0.0003863,30]
[402040545,1768489851260,-500.0,0.0003863,30]
[402040546,1768489851269,-579.14,0.0003863,30]
[402040547,1768489851279,-556.98,0.0003863,30]
[402040548,1768489851289,-500.0,0.0003863,30]
[402040549,1768489851299,-988.33,0.0003863,30]
[402040550,1768489851309,-500.0,0.0003863,30]
[402040551,1768489851318,-500.0,0.0003863,30]
[402040552,1768489851328,-500.0,0.0003863,30]
[402040553,1768489851338,-1006.96,0.0003863,30]
[402040554,1768489851348,-500.0,0.0003863,30]
[402040555,1768489851360,-500.0,0.0003863,30]
[402040556,1768489851370,-500.0,0.0003863,30]
[402040557,1768489851380,-500.0,0.0003863,30]
[402040558,1768489851390,-500.0,0.0003863,30]
[402040559,1768489851400,-509.78748209,0.0003863,30]
[402040560,1768489851410,-707.71,0.0003863,30]
[402040561,1768489851420,-500.0,0.0003863,30]
[402040562,1768489851430,-500.0,0.0003863,30]
[402040563,1768489851440,-500.0,0.0003863,30]
[402040564,1768489851450,-542.02,0.0003863,30]
[402040565,1768489851460,-743.75,0.0003863,30]
[402040566,1768489851470,-2265.38,0.0003863,30]
[402040567,1768489851480,-500.0,0.0003863,30]
[402040568,1768489851491,-500.0,0.0003863,30]
[402040569,1768489851502,-500.0,0.0003863,30]
[402040570,1768489851512,-500.0,0.0003863,12]
[402040571,1768489851523,-500.0,0.0003863,30]
[402040572,1768489851534,-500.0,0.0003863,30]
[402040573,1768489851544,-500.0,0.0003863,30]
[402040574,1768489851554,-2498.71,0.0003863,30]
[402040575,1768489851565,-500.0,0.0003863,30]
[402040576,1768489851575,-500.0,0.0003863,30]
[402040577,1768489851585,-500.0,0.0003863,30]
[402040578,1768489851596,-1097.18,0.0003863,30]
[402040579,1768489851607,-500.0,0.0003863,30]
[402040580,1768489851618,-636.65,0.0003863,30]
[402040581,1768489851628,-500.0,0.0003863,30]
[402040582,1768489851639,-500.0,0.0003863,30]
[402040583,1768489851650,-901.75,0.0003863,30]
[402040584,1768489851660,-500.0,0.0003863,30]
[402040585,1768489851670,-500.0,0.0003863,30]
[402040586,1768489851680,-500.0,0.0003863,30]
[402040587,1768489851690,-802.44,0.0003863,30]
[402040588,1768489851705,-500.0,0.0003863,30]
[402040589,1768489851716,-677.7,0.0003863,30]
[402040590,1768489851726,-889.11,0.0003863,30]
[402040591,1768489851736,-500.0,0.0003863,30]
[402040592,1768489851747,-500.0,0.0003863,30]
[402040593,1768489851757,-748.42,0.0003863,30]
[402040594,1768489851767,-500.0,0.0003863,30]
[402040595,1768489851778,-1231.67,0.0003863,30]
[402040596,1768489851789,-500.0,0.0003863,30]
[402040597,1768489851799,-500.0,0.0003863,30]
[402040598,1768489851809,-269.51475622,0.0003863,30]
[402040599,1768489851821,-904.8,0.0003863,30]
[402040600,1768489851832,-877.34,0.0003863,30]
[402040601,1768489851842,-500.0,0.0003863,30]
[402040602,1768489851852,-500.0,0.0003863,30]
[402040603,1768489851863,-500.0,0.0003863,30]
[402040604,1768489851874,-500.0,0.0003863,30]
[402040605,1768489851886,-1428.48,0.0003863,30]
[402040606,1768489851896,-500.0,0.0003863,30]
[402040607,1768489851908,-500.0,0.0003863,30]
[402040608,1768489851920,-791.7,0.0003863,30]
[402040609,1768489851930,-934.02,0.0003863,30]
[402040610,1768489851941,-500.0,0.0003863,30]
[402040611,1768489851951,-300.0,0.0003863,2]
[402040612,1768489851961,-801.0,0.0003863,30]
[402040613,1768489851976,-500.0,0.0003863,30]
[402040614,1768489851986,-1202.9,0.0003863,30]
[402040615,1768489851996,-500.0,0.0003863,30]
[402040616,1768489852006,-500.0,0.0003863,30]
[402040617,1768489852017,-385.94728771,0.0003863,30]
[402040618,1768489852027,-509.35,0.0003863,30]
[402040619,1768489852037,-500.0,0.0003863,30]
[402040620,1768489852049,-500.0,0.0003863,16]
[402040621,1768489852059,-500.0,0.0003863,30]
[402040622,1768489852074,-1747.35,0.0003863,30]
[402040623,1768489852084,-567.21695402,0.0003863,30]
[402040624,1768489852095,-1831.1,0.0003863,30]
[402040625,1768489852108,-1502.1,0.0003863,30]
[402040626,1768489852118,-811.33,0.0003863,30]
[402040627,1768489852129,-560.8,0.0003863,30]
[402040628,1768489852139,-500.0,0.0003863,30]
[402040629,1768489852150,-689.03,0.0003863,30]
[402040630,1768489852160,-1126.85,0.0003863,30]
[402040631,1768489852170,-500.0,0.0003863,30]
[402040632,1768489852181,-500.0,0.0003863,30]
[402040633,1768489852191,-975.34,0.0003863,30]
[402040634,1768489852202,-658.14,0.0003863,30]
[402040635,1768489852212,-624.86,0.0003863,30]
[402040636,1768489852225,-500.0,0.0003863,30]
[402040637,1768489852235,-3357.63,0.0003863,30]
[402040638,1768489852245,-688.91,0.0003863,30]
[402040639,1768489852256,-500.0,0.0003863,30]
[402040640,1768489852267,-500.0,0.0003863,120]
[402040641,1768489852278,-500.0,0.0003863,30]
[402040642,1768489852288,-2396.39,0.0003863,30]
[402040643,1768489852299,-500.0,0.0003863,30]
[402040644,1768489852310,-875.68,0.0003863,30]
[402040645,1768489852320,-500.0,0.0003863,30]
[402040646,1768489852331,-1725.07,0.0003863,30]
[402040647,1768489852341,-927.83,0.0003863,30]
[402040648,1768489852351,-500.0,0.0003863,30]
[402040649,1768489852364,-500.0,0.0003863,30]
[402040650,1768489852374,-500.0,0.0003863,30]
[402040651,1768489852385,-500.0,0.0003863,30]
[402040652,1768489852395,-500.0,0.0003863,30]
[402040653,1768489852406,-500.0,0.0003863,30]
[402040654,1768489852416,-851.22,0.0003863,30]
[402040655,1768489852428,-500.0,0.0003863,30]
[402040656,1768489852439,-500.0,0.0003863,30]
[402040657,1768489852453,-1059.74,0.0003863,30]
[402040658,1768489852464,-500.0,0.0003863,30]
[402040659,1768489852475,-1920.73,0.0003863,30]
[402040660,1768489852485,-500.0,0.0003863,30]
[402040661,1768489852495,-500.0,0.0003863,30]
[402040662,1768489852506,-500.0,0.0003863,30]
[402040663,1768489852516,-1868.66,0.0003863,30]
[402040664,1768489852526,-1657.98,0.0003863,30]
[402040665,1768489852536,-500.0,0.0003863,30]
[402040666,1768489852546,-665.12,0.0003863,30]
[402040667,1768489852556,-655.49,0.0003863,30]
[402040668,1768489852566,-500.0,0.0003863,30]
[402040669,1768489852576,-508.34590913,0.0003863,30]
[402040670,1768489852586,-500.0,0.0003863,30]
[402040671,1768489852596,-561.9,0.0003863,30]
[402040672,1768489852606,-525.36222062,0.0003863,30]
[402040673,1768489852616,-876.02,0.0003863,30]
[402040674,1768489852626,-4633.48,0.0003863,30]
[402040675,1768489852636,-249.80329591,0.0003863,30]
[402040676,1768489852646,-500.0,0.0003863,30]
[402040677,1768489852656,-500.0,0.0003863,30]
[402040678,1768489852666,-500.0,0.0003863,30]
[402040679,1768489852676,-500.0,0.0003863,30]
[402040680,1768489852686,-692.91,0.0003863,30]
[402040681,1768489852696,-1217.61,0.0003863,30]
[402040682,1768489852705,-1828.13,0.0003863,30]
[402040683,1768489852715,-500.0,0.0003863,30]
[402040684,1768489852726,-500.0,0.0003863,30]
[402040685,1768489852736,-801.45,0.0003863,30]
[402040686,1768489852746,-1477.49,0.0003863,30]
[402040687,1768489852755,-556.18,0.0003863,30]
[402040688,1768489852765,-785.29,0.0003863,30]
[402040689,1768489852775,-500.0,0.0003863,30]
[402040690,1768489852785,-825.21,0.0003863,30]
[402040691,1768489852795,-500.0,0.0003863,30]
[402040692,1768489852805,-500.0,0.0003863,30]
[402040693,1768489852817,-562.77,0.0003863,30]
[402040694,1768489852827,-1274.03,0.0003863,30]
[402040695,1768489852837,-861.71,0.0003863,30]
[402040696,1768489852847,-500.0,0.0003863,30]
[402040697,1768489852857,-500.0,0.0003863,30]
[402040698,1768489852867,-2908.05,0.0003863,30]
[402040699,1768489852877,-981.6,0.0003863,30]
[402040700,1768489852887,-953.11,0.0003863,30]
[402040701,1768489852898,-500.0,0.0003863,30]
[402040702,1768489852908,-500.0,0.0003863,30]
[402040703,1768489852919,-500.0,0.0003863,30]
[402040704,1768489852929,-500.0,0.0003863,30]
[402040705,1768489852939,-1441.32,0.0003863,30]
[402040706,1768489852950,-689.99,0.0003863,30]
[402040707,1768489852961,-527.77,0.0003863,30]
[402040708,1768489852972,-500.0,0.0003863,30]
[402040709,1768489852982,-1436.06,0.0003863,30]
[402040710,1768489852992,-1193.31,0.0003863,14]
[402040711,1768489853003,-500.0,0.0003863,30]
[402040712,1768489853014,-1455.51,0.0003863,30]
[402040713,1768489853025,-500.0,0.0003863,30]
[402040714,1768489853036,-500.0,0.0003863,30]
[402040715,1768489853047,-500.0,0.0003863,30]
[402040716,1768489853057,-2302.63,0.0003863,30]
[402040717,1768489853067,-500.0,0.0003863,30]
[402040718,1768489853078,-894.25,0.0003863,30]
[402040719,1768489853088,-500.0,0.0003863,30]
[402040720,1768489853098,-500.0,0.0003863,30]
[402040721,1768489853113,-500.0,0.0003863,30]
[402040722,1768489853123,-500.0,0.0003863,30]
[402040723,1768489853133,-870.03,0.0003863,30]
[402040724,1768489853142,-500.0,0.0003863,30]
[402040725,1768489853152,-1229.05,0.0003863,30]
[402040726,1768489853163,-683.74,0.0003863,30]
[402040727,1768489853173,-692.34,0.0003863,30]
[402040728,1768489853183,-500.0,0.0003863,30]
[402040729,1768489853193,-1426.46,0.0003863,30]
[402040730,1768489853203,-1689.5,0.0003863,30]
[402040731,1768489853216,-1280.48,0.0003863,30]
[402040732,1768489853226,-500.0,0.0003863,30]
[402040733,1768489853236,-500.0,0.0003863,30]
[402040734,1768489853246,-500.0,0.0003863,30]
[402040735,1768489853256,-500.0,0.0003863,30]
[402040736,1768489853266,-500.0,0.0003863,30]
[402040737,1768489853276,-500.0,0.0003863,30]
[402040738,1768489853288,-500.0,0.0003863,30]
[402040739,1768489853298,-547.02,0.0003863,30]
[402040740,1768489853309,-1062.55,0.0003863,30]
[402040741,1768489853318,-945.2,0.0003863,30]
[402040742,1768489853329,-500.0,0.0003863,30]
[402040743,1768489853339,-500.0,0.0003863,30]
[402040744,1768489853349,-2759.1,0.0003863,30]
[402040745,1768489853359,-500.0,0.0003863,30]
[402040746,1768489853370,-648.2,0.0003863,30]
[402040747,1768489853380,-500.0,0.0003863,30]
[402040748,1768489853390,-813.78,0.0003863,30]
[402040749,1768489853400,-500.0,0.0003863,30]
[402040750,1768489853411,-808.72,0.0003863,30]
[402040751,1768489853756,-608.21,0.0003863,30]
[402040752,1768489853774,-539.69,0.0003863,30]
[402040753,1768489853784,-500.0,0.0003863,30]
[402040754,1768489853794,-500.0,0.0003863,30]
[402040755,1768489853804,-500.0,0.0003863,30]
[402040756,1768489853814,-945.57,0.0003863,30]
[402040757,1768489853824,-500.0,0.0003863,30]
[402040758,1768489853834,-1754.8,0.0003863,30]
[402040759,1768489853844,-500.0,0.0003863,30]
[402040760,1768489853860,-500.0,0.0003863,30]
[402040761,1768489853876,-500.0,0.0003863,30]
[402040762,1768489853886,-984.85,0.0003863,30]
[402040763,1768489853897,-220.30952674,0.0003863,30]
[402040764,1768489853907,-1017.92,0.0003863,30]
[402040765,1768489853917,-512.21,0.0003863,30]
[402040766,1768489853927,-500.0,0.0003863,30]
[402040767,1768489853938,-977.07,0.0003863,30]
[402040768,1768489853948,-1470.22,0.0003863,30]
[402040769,1768489853959,-500.0,0.0003863,30]
[402040770,1768489853969,-1235.47,0.0003863,30]
[402040771,1768489853979,-522.75473781,0.0003863,30]
[402040772,1768489853990,-836.17,0.0003863,30]
[402040773,1768489854000,-1284.05,0.0003863,30]
[402040774,1768489854012,-1196.27,0.0003863,30]
[402040775,1768489854022,-500.0,0.0003863,30]
[402040776,1768489854032,-500.0,0.0003863,30]
[402040777,1768489854042,-1439.8,0.0003863,30]
[402040778,1768489854052,-500.0,0.0003863,30]
[402040779,1768489854062,-755.25,0.0003863,30]
[402040780,1768489854072,-1054.48,0.0003863,30]
[402040781,1768489854082,-500.0,0.0003863,30]
[402040782,1768489854092,-500.0,0.0003863,30]
[402040783,1768489854102,-500.0,0.0003863,30]
[402040784,1768489854116,-898.87,0.0003863,30]
[402040785,1768489854127,-542.04,0.0003863,30]
[402040786,1768489854137,-500.0,0.0003863,30]
[402040787,1768489854147,-1112.57,0.0003863,30]
[402040788,1768489854157,-836.84,0.0003863,30]
[402040789,1768489854167,-500.0,0.0003863,30]
[402040790,1768489854177,-2286.29,0.0003863,30]
[402040791,1768489854187,-1588.83,0.0003863,30]
[402040792,1768489854197,-500.0,0.0003863,30]
[402040793,1768489854207,-500.0,0.0003863,30]
[402040794,1768489854217,-1661.33,0.0003863,30]
[402040795,1768489854227,-500.0,0.0003863,30]
[402040796,1768489854236,-500.0,0.0003863,30]
[402040797,1768489854247,-500.0,0.0003863,30]
[402040798,1768489854257,-1049.59,0.0003863,30]
[402040799,1768489854266,-742.83,0.0003863,30]
[402040800,1768489854277,-500.0,0.0003863,30]
[402040801,1768489854287,-500.0,0.0003863,30]
[402040802,1768489854298,-1442.4,0.0003863,30]
[402040803,1768489854308,-1280.79,0.0003863,30]
[402040804,1768489854318,-259.06,0.0003863,30]
[402040805,1768489854329,-1887.83,0.0003863,30]
[402040806,1768489854339,-975.6,0.0003863,30]
[402040807,1768489854348,-2287.52,0.0003863,30]
[402040808,1768489854359,-525.57,0.0003863,30]
[402040809,1768489854370,-323.43780348,0.0003863,30]
[402040810,1768489854380,-1014.55,0.0003863,30]
[402040811,1768489854390,-941.58,0.0003863,30]
[402040812,1768489854400,-500.0,0.0003863,30]
[402040813,1768489854410,-986.98,0.0003863,30]
[402040814,1768489854420,-500.0,0.0003863,30]
[402040815,1768489854430,-500.0,0.0003863,30]
[402040816,1768489854439,-500.0,0.0003863,30]
[402040817,1768489854450,-795.2,0.0003863,30]
[402040818,1768489854459,-500.0,0.0003863,30]
[402040819,1768489854468,-727.2,0.0003863,30]
[402040820,1768489854478,-576.86,0.0003863,30]
[402040821,1768489854488,-798.28,0.0003863,30]
[402040822,1768489854497,-763.29,0.0003863,30]
[402040823,1768489854507,-1416.15,0.0003863,30]
[402040824,1768489854516,-500.0,0.0003863,30]
[402040825,1768489854526,-816.51,0.0003863,30]
[402040826,1768489854535,-500.0,0.0003863,30]
[402040827,1768489854544,-500.0,0.0003863,30]
[402040828,1768489854555,-892.75,0.0003863,30]
[402040829,1768489854564,-500.0,0.0003863,30]
[402040830,1768489854574,-500.0,0.0003863,30]
[402040831,1768489854583,-2008.89,0.0003863,30]
[402040832,1768489854593,-2929.14,0.0003863,30]
[402040833,1768489854602,-2769.95,0.0003863,30]
[402040834,1768489854612,-500.0,0.0003863,30]
[402040835,1768489854621,-500.0,0.0003863,30]
[402040836,1768489854631,-500.0,0.0003863,30]
[402040837,1768489854640,-1405.91,0.0003863,30]
[402040838,1768489854650,-500.0,0.0003863,30]
[402040839,1768489854659,-600.12,0.0003863,30]
[402040840,1768489854668,-500.0,0.0003863,30]
[402040841,1768489854678,-1316.49,0.0003863,30]
[402040842,1768489854687,-500.0,0.0003863,30]
[402040843,1768489854697,-1282.79,0.0003863,30]
[402040844,1768489854706,-812.44,0.0003863,30]
[402040845,1768489854716,-500.0,0.0003863,30]
[402040846,1768489854726,-862.12,0.0003863,30]
[402040847,1768489854735,-399.66787472,0.0003863,30]
[402040848,1768489854745,-500.0,0.0003863,30]
[402040849,1768489854757,-500.0,0.0003863,5]
[402040850,1768489854770,-778.82,0.0003863,30]
[402040851,1768489854781,-1444.42,0.0003863,30]
[402040852,1768489854791,-500.0,0.0003863,30]
[402040853,1768489854801,-536.56256389,0.0003863,30]
[402040854,1768489854811,-500.0,0.0003863,30]
[402040855,1768489854821,-500.0,0.0003863,30]
[402040856,1768489854832,-500.0,0.0003863,5]
[402040857,1768489854842,-500.0,0.0003863,30]
[402040858,1768489854852,-558.14,0.0003863,30]
[402040859,1768489854863,-500.0,0.0003863,30]
[402040860,1768489854873,-892.57,0.0003863,30]
[402040861,1768489854884,-473.68083595,0.0003863,30]
[402040862,1768489854894,-769.21,0.0003863,30]
[402040863,1768489854905,-500.0,0.0003863,30]
[402040864,1768489854916,-500.0,0.00038904,30]
[402040865,1768489854925,-500.0,0.00038904,30]
[402040866,1768489854935,-1186.01,0.00038904,30]
[402040867,1768489854945,-500.0,0.00038904,30]
[402040868,1768489854955,-512.55061699,0.00038904,30]
[402040869,1768489854965,-1671.45,0.00038904,30]
[402040870,1768489854975,-1364.8,0.00038904,30]
[402040871,1768489854984,-593.97,0.00038904,30]
[402040872,1768489854994,-500.0,0.00038904,30]
[402040873,1768489855004,-850.93,0.00038904,30]
[402040874,1768489855014,-526.24,0.00038904,30]
[402040875,1768489855023,-500.0,0.00038904,30]
[402040876,1768489855033,-500.0,0.00038904,30]